bitfinex/quotes_ETHUSD_20240729
["timestamp","ask_amount","ask_price","bid_price","bid_amount"]
[1722279843469,1.53611375,3314.1,3314.0,3.0175]
[1722279843700,1.53611375,3314.1,3313.4,0.06034892]
[1722279843908,1.53611375,3314.1,3313.9,3.01757]
[1722279844077,1.53611375,3314.1,3314.0,3.0175]
[1722279845141,1.53611375,3314.1,3313.8,3.01762]
[1722279845433,1.70508626,3314.1,3313.7,3.01774]
[1722279845715,1.70508626,3314.1,3313.2,3.02322]
[1722279845716,1.53611375,3314.0,3313.9,3.01753]
[1722279846625,1.53611375,3314.0,3313.8,3.01767]
[1722279846793,1.53611375,3314.0,3313.6,3.01785]
[1722279847115,1.53611375,3314.0,3313.2,0.005]
[1722279847116,1.53611375,3314.0,3313.4,3.01798]
[1722279847326,1.53611375,3314.0,3313.2,3.02319]
[1722279847327,1.70662238,3314.0,3313.3,3.01812]
[1722279847479,1.53611375,3313.9,3313.3,3.01812]
[1722279847678,1.53611375,3313.9,3313.4,3.01804]
[1722279847884,1.53611375,3313.9,3313.2,0.005]
[1722279847885,1.53611375,3313.9,3313.7,3.01768]
[1722279848112,1.53611375,3313.9,3313.8,3.01768]
[1722279848331,1.53611375,3313.9,3313.8,6.03536]
[1722279848485,1.53607651,3314.6,3313.9,3.01751]
[1722279848677,1.99137308,3314.5,3313.8,3.01768]
[1722279849013,1.53607743,3314.4,3313.9,3.01756]
[1722279849178,1.53607743,3314.4,3314.0,3.01747]
[1722279850729,1.53607743,3314.3,3314.0,3.01747]
[1722279850877,1.53607743,3314.2,3314.1,3.0174]
[1722279851197,1.60943414,3314.9,3314.4,3.01713]
[1722279851520,1.60943414,3314.9,3314.2,3.01731]
[1722279851521,1.53592789,3314.8,3314.3,3.01721]
[1722279852025,1.53592789,3314.7,3314.3,3.01721]
[1722279852210,1.53592789,3314.6,3314.3,3.01721]
[1722279852385,1.53592789,3314.5,3314.3,3.01721]
[1722279852583,5.89323473,3315.0,3314.3,3.01721]
[1722279852584,1.53592789,3314.4,3314.3,3.01721]
[1722279852995,0.58932347,3314.9,3314.1,0.06034131]
[1722279852996,0.58932347,3314.9,3314.1,0.06033879]
[1722279853196,1.5358548,3314.8,3314.1,0.06033879]
[1722279853402,1.5358548,3314.7,3314.5,3.01704]
[1722279853582,1.5358548,3314.6,3314.5,3.01704]
[1722279854432,4.5525348,3314.9,3314.1,3.01734]
[1722279854651,2.03003275,3314.8,3314.1,3.01734]
[1722279854939,1.5358548,3314.7,3314.2,3.0173]
[1722279855734,1.5358548,3314.7,3314.1,3.01734]
[1722279856281,1.5358548,3314.7,3313.9,3.01755]
[1722279856535,1.5358548,3314.7,3313.5,3.01792]
[1722279856536,3.01714,3314.4,3313.5,3.01792]
[1722279856824,1.5358548,3314.3,3313.8,3.01767]
[1722279857128,1.5358548,3314.2,3313.8,3.01767]
[1722279857330,1.5358548,3314.1,3313.7,3.01776]
[1722279857497,0.56888033,3314.4,3313.7,3.01776]
[1722279857679,1.53614994,3314.3,3313.7,3.01776]
[1722279858502,3.01732,3314.2,3313.5,3.01792]
[1722279858705,3.01732,3314.2,3313.3,8.46488]
[1722279858706,1.53614994,3314.1,3313.3,8.46488]
[1722279859027,1.90390233,3314.1,3313.4,3.01804]
[1722279859221,1.53614994,3314.0,3313.4,3.01804]
[1722279859808,1.53614994,3314.0,3313.5,3.01793]
[1722279860216,1.53614994,3313.9,3313.5,3.01793]
[1722279860440,1.53614994,3313.8,3313.6,3.01783]
[1722279860742,0.56888033,3314.4,3313.7,3.01776]
[1722279860911,1.53612277,3314.3,3313.7,3.01776]
[1722279861119,1.53612277,3314.3,3313.8,3.01767]
[1722279862637,1.53612277,3314.3,3314.2,6.03462]
[1722279862859,1.25826519,3315.1,3314.3,3.0172]
[1722279863003,1.53571858,3315.0,3314.8,3.01671]
[1722279863337,9.6807,3315.6,3314.8,3.01677]
[1722279863338,1.53571858,3314.9,3314.8,3.01677]
[1722279863740,1.53571858,3315.4,3314.8,3.01677]
[1722279864045,1.53571858,3315.3,3314.8,3.01677]
[1722279864255,1.53571858,3315.2,3314.8,3.01677]
[1722279864538,1.53571858,3315.1,3314.8,3.01677]
[1722279864702,1.53571858,3315.0,3314.8,3.01677]
[1722279865040,1.53571858,3314.9,3314.8,3.01677]
[1722279865249,1.53571858,3315.4,3314.6,3.01694]
[1722279865459,4.55208858,3315.3,3314.6,3.01694]
[1722279865627,1.53571858,3315.2,3314.6,3.01694]
[1722279865949,1.53571858,3315.2,3314.8,3.01677]
[1722279866117,1.53571858,3315.1,3314.8,3.01677]
[1722279866314,1.53571858,3315.0,3314.9,3.01668]
[1722279866528,1.53571858,3315.3,3314.9,3.01667]
[1722279866702,1.7830156,3315.3,3314.9,3.01667]
[1722279866902,1.53571858,3315.2,3314.9,3.01667]
[1722279867152,1.53571858,3315.2,3315.1,3.0165]
[1722279867756,1.53571858,3315.2,3314.9,3.01667]
[1722279868144,1.53571858,3315.2,3315.0,3.01658]
[1722279868355,7.37,3315.6,3315.1,3.0165]
[1722279868515,1.53562712,3315.5,3315.0,0.06032572]
[1722279868716,1.53562712,3315.5,3314.7,5.49153]
[1722279868907,4.55183712,3315.5,3314.7,2.4747]
[1722279869121,2.86735938,3315.4,3314.7,2.4747]
[1722279869353,1.53562712,3315.3,3314.6,3.01694]
[1722279869551,4.55194712,3315.3,3314.6,3.01694]
[1722279869859,4.55194712,3315.3,3314.3,5.35089]
[1722279869860,1.53562712,3315.2,3314.5,3.01698]
[1722279870066,1.53562712,3315.1,3314.6,3.01694]
[1722279870362,1.53562712,3315.0,3314.6,3.01694]
[1722279870525,3.01631,3315.3,3314.6,3.01694]
[1722279870735,1.97044844,3315.2,3314.6,3.01694]
[1722279870960,1.53564421,3315.1,3314.4,3.01713]
[1722279871416,4.55214421,3315.1,3314.4,3.01713]
[1722279871618,1.53564421,3315.0,3314.4,3.01713]
[1722279871850,3.45127423,3315.2,3314.5,3.01703]
[1722279872034,4.89733348,3315.1,3314.3,5.35086]
[1722279872357,4.89733348,3315.1,3313.8,2.4794]
[1722279872358,3.01674,3314.9,3313.8,2.4794]
[1722279872567,1.99090227,3314.8,3314.0,3.01744]
[1722279872732,1.53566206,3314.7,3314.2,3.01724]
[1722279873063,1.53566206,3314.7,3314.0,3.01743]
[1722279873209,0.19909023,3314.6,3314.1,3.0174]
[1722279873412,1.53566206,3314.5,3314.2,3.01731]
[1722279873918,1.53566206,3314.5,3314.0,3.01744]
[1722279874442,1.53566206,3314.5,3314.1,3.0174]
[1722279874643,1.53566206,3314.5,3314.3,3.01719]
[1722279874827,1.53566206,3314.4,3314.3,3.01719]
[1722279875062,1.53584038,3314.7,3314.3,3.01719]
[1722279875296,2.03661644,3314.7,3314.3,3.01719]
[1722279875469,1.53584038,3314.6,3314.3,3.01719]
[1722279875797,1.53584038,3314.6,3314.1,3.01734]
[1722279875970,1.53584038,3314.6,3313.9,3.01756]
[1722279876168,1.53584038,3314.6,3314.1,3.01734]
[1722279876377,0.20366164,3314.5,3314.1,3.01734]
[1722279876550,1.53584038,3314.4,3314.1,3.01734]
[1722279876894,1.53584038,3314.4,3314.3,3.01722]
[1722279877122,1.53584038,3314.4,3314.2,3.01728]
[1722279877287,3.36161142,3315.1,3314.4,3.01711]
[1722279877589,2.96718486,3315.0,3314.4,3.01711]
[1722279877761,1.5358272,3314.9,3314.3,3.01721]
[1722279878558,1.5358272,3314.9,3314.4,3.01713]
[1722279879073,1.5358272,3314.8,3314.2,3.01728]
[1722279879251,3.01687,3314.7,3313.8,2.4794]
[1722279879452,1.5358272,3314.6,3314.0,3.01744]
[1722279879690,1.5358272,3314.6,3314.1,3.0174]
[1722279879904,4.5528272,3314.6,3313.9,3.01753]
[1722279880107,1.5358272,3314.5,3314.0,3.0175]
[1722279880311,1.99110992,3314.5,3313.9,3.01756]
[1722279880454,1.5358272,3314.4,3313.9,3.01756]
[1722279880857,1.5358272,3314.4,3313.7,3.01769]
[1722279881216,1.5358272,3314.3,3313.7,3.01769]
[1722279881366,1.99113092,3314.2,3313.7,3.01769]
[1722279881701,1.5358272,3314.1,3313.7,3.01769]
[1722279882190,1.5358272,3314.1,3313.9,3.01756]
[1722279882396,2.3128,3314.5,3313.7,3.01769]
[1722279882397,1.5358272,3314.0,3313.7,3.01769]
[1722279882554,1.5358272,3313.9,3313.7,3.01769]
[1722279882754,5.32985,3314.5,3313.7,3.01769]
[1722279882755,1.5358272,3313.8,3313.7,3.01769]
[1722279883454,1.5358272,3314.3,3313.7,3.01769]
[1722279883656,0.9921985,3314.4,3313.8,3.01767]
[1722279883657,1.5358272,3314.2,3313.8,3.01767]
[1722279883860,1.5358272,3314.1,3313.8,3.01767]
[1722279884054,1.5358272,3314.0,3313.9,3.01759]
[1722279884249,1.5358272,3314.0,3313.8,3.07801592]
[1722279884250,1.53598641,3314.3,3313.8,3.01764]
[1722279884454,1.53598641,3314.2,3314.1,3.0174]
[1722279884696,1.53598641,3314.2,3313.9,2.39074639]
[1722279884853,1.57415982,3314.9,3313.9,2.39074639]
[1722279884854,1.25932786,3314.9,3314.4,3.01708]
[1722279885055,1.53579805,3314.8,3314.4,3.01708]
[1722279885254,1.53579805,3314.7,3314.4,3.01708]
[1722279885486,0.1535798,3314.7,3314.4,3.01708]
[1722279885696,3.56842786,3315.0,3314.4,3.01708]
[1722279885697,1.53581319,3314.6,3314.4,3.01708]
[1722279885991,1.53581319,3314.5,3314.4,3.01708]
[1722279886416,1.53581319,3314.5,3314.2,3.01729]
[1722279886417,1.53581319,3314.8,3314.2,3.01729]
[1722279886596,1.53581319,3314.7,3314.2,3.01729]
[1722279886802,1.53581319,3314.6,3314.3,3.0172]
[1722279887004,1.53581319,3314.6,3314.3,3.077538]
[1722279887378,1.53581319,3314.6,3314.2,3.01729]
[1722279887581,1.53581319,3314.6,3314.2,3.01723]
[1722279887787,1.53581319,3314.6,3313.9,2.3304]
[1722279888003,1.53581319,3314.6,3314.2,3.01724]
[1722279888197,1.71734592,3314.6,3314.2,3.01724]
[1722279888406,1.53581319,3314.5,3314.2,3.01724]
[1722279888722,1.53581319,3314.5,3314.0,3.01743]
[1722279888723,1.53581319,3314.4,3314.1,3.01739]
[1722279888881,0.18153273,3314.6,3314.1,3.01739]
[1722279888882,1.53581319,3314.3,3314.1,3.01739]
[1722279889080,1.53581319,3314.2,3314.1,3.01739]
[1722279889816,1.53581319,3314.5,3314.1,3.01739]
[1722279889982,1.53581319,3314.4,3314.1,3.01739]
[1722279890181,0.18153273,3314.6,3314.1,3.01739]
[1722279890182,1.53581319,3314.3,3314.1,3.01739]
[1722279890513,1.53581319,3314.2,3314.1,3.01739]
[1722279890719,1.53590739,3314.5,3314.2,3.01726]
[1722279890882,1.53589755,3314.4,3314.2,3.01726]
[1722279891083,1.53589755,3314.3,3314.2,3.01726]
[1722279891285,1.53591615,3314.5,3314.0,3.01746]
[1722279891485,1.53591615,3314.4,3313.6,3.01783]
[1722279891809,1.53591615,3314.4,3313.8,3.01767]
[1722279891810,2.79568788,3314.3,3313.8,3.01767]
[1722279892011,1.53591615,3314.2,3313.7,3.01776]
[1722279892167,1.53591615,3314.1,3313.8,3.01765]
[1722279892511,1.53591615,3314.0,3313.8,3.01765]
[1722279892711,1.53591615,3313.9,3313.8,3.01765]
[1722279892910,1.53591615,3314.2,3313.8,3.01765]
[1722279893071,1.53591615,3314.1,3313.8,3.01765]
[1722279893272,1.53591615,3314.0,3313.8,3.01765]
[1722279893604,1.53591615,3313.9,3313.8,3.01765]
[1722279893850,1.53591615,3314.2,3313.8,3.01765]
[1722279894050,1.53591615,3314.1,3313.6,3.01779]
[1722279894216,1.25977173,3314.3,3313.6,3.01779]
[1722279894217,1.53591615,3314.0,3313.6,3.01779]
[1722279894412,1.53591615,3313.9,3313.8,6.03536]
[1722279894612,1.75628792,3314.6,3314.1,3.01736]
[1722279894613,1.25977173,3314.6,3314.1,3.01736]
[1722279894812,8.94475519,3314.8,3314.2,0.0603397]
[1722279894813,1.53599082,3314.5,3314.2,0.0603397]
[1722279895039,1.25977173,3314.7,3314.1,3.07770056]
[1722279895040,1.53599082,3314.4,3314.1,3.07770056]
[1722279895246,1.25977173,3314.7,3314.0,0.0603413]
[1722279895247,1.53099082,3314.3,3314.0,0.0603413]
[1722279895411,3.01696,3314.6,3313.5,2.2706]
[1722279895412,1.6840899,3314.2,3313.6,3.01784]
[1722279895613,3.01722,3314.3,3313.6,3.01784]
[1722279896262,4.27699173,3314.3,3313.6,3.01784]
[1722279896421,4.27699173,3314.3,3313.7,3.01776]
[1722279896619,3.01722,3314.3,3313.7,3.01776]
[1722279896939,4.27699173,3314.3,3313.7,3.01776]
[1722279897139,3.01722,3314.3,3313.7,3.01776]
[1722279897476,4.27699173,3314.3,3313.7,3.01776]
[1722279897656,3.01722,3314.3,3313.7,3.01776]
[1722279899046,2.3041498,3314.2,3313.7,3.01776]
[1722279899239,3.01722,3314.3,3313.7,3.01776]
[1722279899448,2.30415135,3314.2,3313.7,3.01776]
[1722279899770,3.01722,3314.3,3313.7,3.01776]
[1722279899964,2.30415135,3314.2,3313.7,3.01776]
[1722279900253,3.68527173,3314.4,3313.7,3.01776]
[1722279900452,2.30417497,3314.3,3313.7,3.01776]
[1722279900755,3.68527173,3314.4,3313.8,3.01768]
[1722279900756,2.3040886,3314.2,3313.8,3.01768]
[1722279900964,3.68527173,3314.4,3313.8,3.01768]
[1722279901113,2.30411679,3314.3,3313.8,3.01768]
[1722279901457,6.70241173,3314.4,3313.8,3.01768]
[1722279901665,4.5912336,3314.6,3313.8,3.01768]
[1722279901666,2.30408986,3314.3,3313.8,3.07802632]
[1722279901818,1.25977173,3314.5,3313.8,3.01768]
[1722279902018,2.3040197,3314.4,3313.8,3.01768]
[1722279902220,4.27676173,3314.6,3314.0,3.01747]
[1722279902419,2.30396467,3314.5,3314.0,3.01747]
[1722279902618,2.30396467,3314.4,3314.0,3.01747]
[1722279902853,1.25977173,3314.6,3313.5,2.2706]
[1722279903021,8.62977173,3314.8,3313.6,3.07818862]
[1722279903371,8.62977173,3314.8,3314.3,3.01717]
[1722279903372,2.30383277,3314.7,3314.3,3.01717]
[1722279903517,2.30383277,3314.6,3314.3,3.01717]
[1722279903867,8.62977173,3314.8,3314.3,3.01717]
[1722279904182,2.30375678,3314.7,3314.3,3.01717]
[1722279904469,4.27645173,3314.9,3314.3,3.01717]
[1722279904669,2.3037878,3314.8,3314.4,3.0171]
[1722279904835,2.3037878,3314.7,3314.4,3.0171]
[1722279905039,1.25977173,3314.9,3314.3,3.01721]
[1722279905243,2.30372752,3314.8,3314.3,3.01721]
[1722279905445,1.25977173,3315.0,3314.3,3.01721]
[1722279905660,2.30365867,3314.9,3314.5,3.017]
[1722279905968,2.30365867,3314.8,3314.3,3.01721]
[1722279906172,2.30365867,3314.7,3314.3,3.01721]
[1722279906473,1.25977173,3314.9,3314.4,3.01711]
[1722279906625,2.30369352,3314.8,3314.4,3.01711]
[1722279906970,2.30369352,3314.7,3314.4,3.01711]
[1722279907264,1.25977173,3314.9,3314.4,3.01711]
[1722279907424,2.30370701,3314.8,3314.4,3.01711]
[1722279907622,2.30370701,3314.7,3314.5,3.01701]
[1722279907862,1.25977173,3315.0,3314.5,3.01701]
[1722279908047,2.30358929,3314.9,3314.5,3.01701]
[1722279908223,2.30358929,3314.8,3314.3,3.01715]
[1722279908427,1.25977173,3315.0,3314.4,3.01712]
[1722279908626,2.30362725,3314.9,3314.4,3.01712]
[1722279908932,2.30362725,3314.8,3314.4,3.01712]
[1722279909133,1.25977173,3315.0,3314.4,3.01712]
[1722279909347,2.30362823,3314.9,3314.4,3.01712]
[1722279909536,2.30362823,3314.8,3314.4,3.01712]
[1722279909851,1.25977173,3315.0,3314.4,3.01712]
[1722279910052,2.30357998,3314.9,3314.4,3.01705]
[1722279910254,2.30357998,3314.8,3314.4,3.01705]
[1722279910668,2.30357998,3314.8,3314.4,3.01708]
[1722279910975,2.30365254,3314.7,3314.4,3.01708]
[1722279911266,1.25977173,3314.9,3314.4,3.01708]
[1722279911426,2.30366114,3314.8,3314.4,3.01708]
[1722279911625,2.30366114,3314.7,3314.4,3.01708]
[1722279911864,1.25977173,3314.9,3314.6,3.01695]
[1722279912065,2.3923,3315.2,3314.7,3.01686]
[1722279912066,2.30365547,3314.8,3314.7,3.01686]
[1722279912243,1.57607491,3315.2,3314.7,3.0168]
[1722279912244,1.25977173,3315.1,3314.7,3.0168]
[1722279912436,2.30347024,3315.0,3314.9,3.01662]
[1722279912874,1.25977173,3315.2,3314.9,3.01662]
[1722279913167,2.30340901,3315.1,3314.9,3.01662]
[1722279913335,1.25977173,3315.2,3314.9,3.01662]
[1722279913535,2.30338077,3315.1,3314.9,3.01662]
[1722279913740,1.25977173,3315.2,3315.1,3.0165]
[1722279913945,7.37,3315.4,3315.0,3.07690014]
[1722279913946,8.63115055,3315.4,3315.2,3.0164]
[1722279914146,2.3032377,3315.3,3315.2,3.0164]
[1722279914547,2.3032377,3315.3,3315.0,3.01651]
[1722279914751,7.37,3315.4,3315.1,3.01642]
[1722279914979,2.30325074,3315.3,3315.1,3.01642]
[1722279915185,1.53550118,3315.2,3315.0,3.01651]
[1722279915387,1.53550118,3315.1,3314.8,3.01675]
[1722279915572,3.83900803,3315.0,3314.6,3.01693]
[1722279915885,1.53550118,3314.9,3314.7,3.01686]
[1722279916184,1.53550118,3314.8,3314.7,3.01686]
[1722279916561,3.83897985,3315.1,3314.6,3.01694]
[1722279916886,4.59300067,3315.2,3314.8,3.01668]
[1722279916887,1.53550118,3315.0,3314.8,3.01668]
[1722279917065,1.53550118,3314.9,3314.8,3.01668]
[1722279917262,1.26115055,3315.3,3314.8,3.01668]
[1722279917263,1.53550118,3315.2,3314.8,3.01668]
[1722279917476,3.83884106,3315.1,3314.9,3.01668]
[1722279917677,1.53550118,3315.0,3314.9,3.01668]
[1722279918067,1.26115055,3315.4,3315.1,3.01647]
[1722279918269,3.83872488,3315.3,3315.1,3.01647]
[1722279918456,3.83872488,3315.2,3315.1,3.01647]
[1722279918798,1.53548995,3315.2,3315.1,3.01647]
[1722279920359,1.53548995,3315.2,3315.1,3.0165]
[1722279920660,1.53542566,3315.3,3315.2,3.0164]
[1722279920877,8.63115055,3315.7,3315.4,3.0162]
[1722279921118,3.83840108,3315.6,3315.4,3.0162]
[1722279921318,3.83840108,3315.5,3315.4,3.0162]
[1722279921462,1.53537282,3315.5,3315.2,3.01634]
[1722279921668,1.53537282,3315.4,3315.2,3.01634]
[1722279921877,3.83840108,3315.3,3315.2,8.49614]
[1722279922077,1.53537282,3315.3,3315.2,9.345754]
[1722279922997,1.53537282,3315.3,3315.2,12.362154]
[1722279923659,1.53537282,3315.3,3315.2,9.345754]
[1722279923880,1.53537282,3315.3,3315.2,3.01634]
[1722279924625,1.53537282,3315.3,3314.7,3.01685]
[1722279924626,3.93397282,3315.3,3314.7,3.0168]
[1722279924793,3.83823275,3315.2,3314.4,5.3996]
[1722279925000,5.41492,3315.3,3314.6,3.01694]
[1722279925001,4.76354803,3315.1,3314.6,3.01694]
[1722279925316,3.83823275,3315.0,3314.6,3.01694]
[1722279925484,3.83823275,3314.9,3314.6,3.01694]
[1722279925685,3.83823275,3314.8,3314.7,3.01686]
[1722279926107,1.53537282,3314.8,3314.7,3.01686]
[1722279926309,1.53569623,3314.8,3314.6,3.01694]
[1722279926634,1.53569623,3314.7,3314.6,6.03385]
[1722279927096,1.53569623,3314.7,3314.6,3.0169]
[1722279927780,1.53569623,3314.7,3314.6,6.03385]
[1722279928423,1.25918779,3315.5,3315.0,3.01652]
[1722279928424,1.53555821,3315.4,3315.0,3.01652]
[1722279928728,1.53558042,3315.3,3314.8,3.01672]
[1722279929028,3.8389562,3315.2,3314.8,3.01672]
[1722279929216,3.8389562,3315.1,3314.8,3.01672]
[1722279929397,3.8389562,3315.0,3314.8,3.01672]
[1722279929599,3.8389562,3314.9,3314.8,3.01672]
[1722279929799,1.53558042,3314.9,3314.8,3.01672]
[1722279931229,1.53558042,3314.9,3314.7,3.01686]
[1722279931439,1.53558042,3314.8,3314.7,3.01686]
[1722279932008,1.53558042,3314.8,3314.5,3.01697]
[1722279932226,1.53558042,3314.7,3314.6,3.01692]
[1722279932545,1.60078339,3314.7,3314.6,3.01692]
[1722279933424,1.60078339,3314.7,3314.0,3.01748]
[1722279933425,4.06449237,3314.7,3313.9,2.3448]
[1722279933599,2.30363064,3314.6,3313.8,3.01762]
[1722279933800,4.55263042,3314.5,3313.8,3.01762]
[1722279934039,4.52483717,3314.4,3313.8,3.01762]
[1722279934254,3.83921106,3314.3,3313.8,3.01762]
[1722279934542,3.83921106,3314.3,3313.9,3.01759]
[1722279934543,3.83921106,3314.2,3313.9,3.01759]
[1722279934697,0.68562611,3314.4,3313.9,3.01759]
[1722279934698,3.90420399,3314.1,3313.9,3.01759]
[1722279935045,1.53558042,3314.0,3313.9,3.01759]
[1722279935344,1.60050197,3314.0,3313.9,3.01759]
[1722279935712,1.60050197,3314.0,3313.7,3.01773]
[1722279935905,1.53558042,3313.9,3313.7,3.01773]
[1722279936102,1.60035925,3313.8,3313.6,3.01786]
[1722279936467,1.53558042,3313.7,3313.6,3.01786]
[1722279936802,1.60034315,3313.7,3313.6,3.01786]
[1722279937498,1.76037747,3313.7,3313.2,3.0182]
[1722279937703,1.76037747,3313.7,3312.6,2.3677]
[1722279937704,3.839938,3313.6,3313.1,3.01831]
[1722279937899,3.90461074,3313.5,3312.9,3.01849]
[1722279938100,3.90461074,3313.5,3312.6,2.3677]
[1722279938101,3.84011765,3313.4,3312.8,3.01859]
[1722279938424,1.59998981,3313.3,3312.6,2.3677]
[1722279938739,1.53558042,3313.2,3313.1,3.01832]
[1722279938978,1.59990549,3313.2,3313.1,3.01832]
[1722279939757,1.59990549,3313.2,3312.9,3.01848]
[1722279939975,1.59990549,3313.2,3312.6,2.3677]
[1722279939976,1.53558042,3313.1,3312.8,3.01859]
[1722279940147,0.06421459,3313.0,3312.8,3.01859]
[1722279940335,1.53558042,3312.9,3312.8,3.01859]
[1722279940537,1.59981026,3312.9,3312.8,3.01859]
[1722279940760,1.59981026,3312.9,3312.7,3.01866]
[1722279940973,1.53558042,3312.8,3312.7,3.01866]
[1722279941177,1.59978195,3312.8,3312.7,6.03734]
[1722279941383,1.53558042,3312.8,3312.7,6.03734]
[1722279941563,7.37,3313.9,3313.4,3.01804]
[1722279941564,8.62918779,3313.9,3313.4,3.01804]
[1722279941884,3.90521009,3313.8,3313.5,3.01792]
[1722279942085,1.53637911,3313.7,3313.5,3.01792]
[1722279942572,0.06418642,3313.6,3313.4,3.01804]
[1722279942781,1.53637911,3313.5,3313.4,3.319844]
[1722279943133,3.01716,3314.4,3313.6,3.01777]
[1722279943376,3.90470215,3314.3,3313.6,3.01777]
[1722279943531,3.8403134,3314.2,3313.7,3.01771]
[1722279943732,3.90465848,3314.1,3313.5,3.01789]
[1722279943971,3.90465848,3314.1,3313.6,3.01785]
[1722279943972,4.23077925,3314.0,3313.6,3.01785]
[1722279944175,6.65523779,3314.5,3313.7,3.0177]
[1722279944176,1.60042771,3313.9,3313.7,3.0177]
[1722279944373,1.53612631,3313.8,3313.7,3.0177]
[1722279944675,1.60040587,3313.8,3313.7,3.0177]
[1722279945535,1.60040587,3313.8,3313.7,6.03547]
[1722279946689,1.53612631,3313.8,3313.7,3.0177]
[1722279946859,7.37,3314.6,3313.5,3.01792]
[1722279946860,3.01744,3314.1,3313.5,3.01792]
[1722279947055,0.06440658,3313.8,3313.5,3.01792]
[1722279947363,1.83787031,3314.0,3313.6,3.01786]
[1722279947364,1.60055937,3313.7,3313.6,3.01786]
[1722279948655,1.53612631,3313.7,3313.6,3.01786]
[1722279949056,3.84038923,3314.2,3313.6,3.01786]
[1722279949355,3.84038923,3314.2,3313.4,3.01804]
[1722279949356,6.28408209,3314.1,3313.4,3.01804]
[1722279949586,3.84038815,3314.0,3313.5,3.01795]
[1722279949756,1.60081844,3313.9,3313.5,6.03583]
[1722279949956,1.53612631,3313.8,3313.5,3.01788]
[1722279950153,0.06458716,3313.7,3313.5,3.01788]
[1722279950409,1.53612631,3313.6,3313.5,3.01788]
[1722279950561,0.06456532,3313.6,3313.5,3.01788]
[1722279950760,1.53612631,3313.9,3313.5,3.01788]
[1722279951066,1.60073531,3313.8,3313.5,3.01788]
[1722279951272,1.53612631,3313.7,3313.6,3.01786]
[1722279951688,1.60069841,3313.7,3313.6,3.01786]
[1722279952298,1.60069841,3313.7,3313.6,8.44192]
[1722279952574,1.53612631,3313.7,3313.6,8.44192]
[1722279952775,6.01713,3314.5,3313.8,3.01762]
[1722279952994,5.24348252,3314.4,3313.8,3.01762]
[1722279953171,3.84008106,3314.3,3313.8,3.01762]
[1722279953358,0.06464479,3314.2,3313.9,3.01759]
[1722279953562,1.53603365,3314.1,3313.9,3.01759]
[1722279953761,1.60065631,3314.0,3313.9,3.01759]
[1722279955507,1.60065631,3314.0,3313.9,6.03518]
[1722279957379,1.53603365,3314.0,3313.9,6.03518]
[1722279957612,3.0,3314.8,3314.3,3.01717]
[1722279957814,5.12254225,3314.7,3314.3,3.01717]
[1722279958016,3.83971225,3314.6,3314.3,3.01717]
[1722279958321,3.83971225,3314.6,3314.1,3.01733]
[1722279958518,0.06483518,3314.5,3314.2,3.0173]
[1722279958676,1.92633964,3314.4,3314.3,3.01722]
[1722279958884,1.5358849,3314.4,3314.3,3.01722]
[1722279959196,1.60072842,3314.4,3314.3,3.01722]
[1722279961018,1.60072842,3314.4,3314.3,6.03444]
[1722279962735,1.60072842,3314.4,3314.3,9.05166]
[1722279962912,0.06484352,3314.4,3314.3,11.39946]
[1722279963423,7.37,3315.1,3314.3,11.39946]
[1722279963424,7.37,3315.1,3315.0,3.01659]
[1722279963631,1.53555259,3315.1,3315.0,3.01659]
[1722279963948,1.6007015,3315.1,3315.0,3.01659]
[1722279964323,1.53555234,3315.1,3315.0,3.01659]
[1722279964526,0.06512664,3315.1,3315.0,3.01659]
[1722279964693,1.53555234,3315.1,3315.0,3.01659]
[1722279964894,1.53555234,3315.6,3315.0,3.01659]
[1722279965187,3.83886454,3315.5,3315.0,3.01659]
[1722279965413,1.40225563,3315.6,3315.3,3.01631]
[1722279965414,3.90405665,3315.4,3315.3,3.01631]
[1722279965830,1.60074445,3315.4,3315.3,3.01631]
[1722279966536,1.60074445,3315.4,3315.3,6.03262]
[1722279969573,1.60074445,3315.4,3315.3,9.953837]
[1722279969779,7.37,3316.4,3316.2,3.01542]
[1722279969934,3.89891195,3316.3,3316.1,3.01555]
[1722279970129,1.53511493,3316.2,3316.1,3.01555]
[1722279970335,1.59621774,3316.2,3316.1,3.01555]
[1722279970533,1.59621774,3316.2,3316.1,3.01559]
[1722279970847,1.53511493,3316.2,3316.1,6.03118]
[1722279971177,2.2578,3316.8,3316.4,3.01531]
[1722279971343,4.06336137,3316.7,3316.4,3.01531]
[1722279971671,3.83758137,3316.6,3316.4,3.01531]
[1722279971985,0.22578,3316.7,3316.4,3.01531]
[1722279971986,1.53503332,3316.5,3316.4,3.01531]
[1722279972160,1.53503332,3316.6,3316.4,3.01531]
[1722279972359,2.01111465,3316.5,3316.4,3.01531]
[1722279973073,1.53503332,3316.5,3316.4,3.01531]
[1722279973290,1.53503332,3316.6,3316.4,3.01531]
[1722279973449,1.53503332,3316.5,3316.4,3.01531]
[1722279974379,1.53503332,3316.6,3316.4,3.01531]
[1722279974582,1.53503332,3316.5,3316.2,3.01548]
[1722279974956,1.53503332,3316.5,3316.3,3.01539]
[1722279975892,1.53503332,3316.5,3316.4,3.01531]
[1722279979482,0.248358,3316.6,3316.4,3.01531]
[1722279979695,2.2578,3316.8,3316.4,3.01531]
[1722279979878,1.53490921,3316.7,3316.6,3.01505]
[1722279980080,2.2578,3316.8,3316.7,3.01504]
[1722279980288,3.79271251,3316.8,3316.7,3.01504]
[1722279980442,4.47198376,3316.8,3316.7,3.01504]
[1722279980642,2.21418376,3316.8,3316.7,3.01504]
[1722279981383,2.21418376,3316.8,3316.4,3.01527]
[1722279981587,2.21418376,3316.8,3316.6,3.01512]
[1722279981588,0.67927125,3316.8,3316.6,3.01512]
[1722279981899,3.0,3317.0,3316.4,3.01524]
[1722279982065,1.53492504,3316.9,3316.5,3.01522]
[1722279982650,1.53492504,3316.9,3316.6,3.01513]
[1722279983988,1.53492504,3316.9,3316.4,3.01531]
[1722279984286,0.4534925,3316.8,3316.4,3.01531]
[1722279984490,0.4534925,3316.8,3316.5,3.01522]
[1722279984848,0.4534925,3316.8,3316.6,3.01513]
[1722279985046,3.0,3317.0,3316.6,3.01513]
[1722279985250,1.53483061,3316.9,3316.6,3.01513]
[1722279985450,1.53483061,3316.8,3316.6,3.01513]